[Event "Fagernes GM-A 2019"]
[Site "Fagernes"]
[Date "2019.04.21"]
[Round "9.14"]
[White "Abdrlauf, Elham"]
[Black "Bentsen, Hakon"]
[Result "1/2-1/2"]
[ECO "D35"]
[WhiteElo "2123"]
[BlackElo "2155"]
[Annotator "NA"]
[PlyCount "87"]
[EventDate "2019.04.14"]
[EventType "tourn"]
[EventCountry "NOR"]
[SourceTitle "playchess.com"]
[Source "ChessBase"]
[SourceQuality "1"]
[TimeControl "40/7200:3600"]

1. d4 {[%emt 0:01:01]} Nf6 {[%emt 0:00:13]} 2. c4 {[%emt 0:00:13]} e6 {[%emt 0:00:08]} 3. Nc3 {[%emt 0:00:20]} d5 {[%emt 0:00:41]} 4. cxd5 {[%emt 0:00:08]} exd5 $11 {[%emt 0:00:06]} 5. Bg5 {[%emt 0:00:05]} Nbd7 {[%emt 0:00:11]} 6. e3 {[%emt 0:00:06]} Be7 {[%emt 0:00:14]} 7. Bd3 {[%emt 0:00:17]} c6 {[%emt 0:00:30]} 8. Nge2 {[%emt 0:00:15]} O-O {[%emt 0:00:27]} 9. O-O {[%emt 0:00:05]} Re8 {[%emt 0:00:08]} 10. Qd2 {[%emt 0:09:26]} Ne4 {[%emt 0:02:18]} 11. Nxe4 {[%emt 0:00:03]} dxe4 {[%emt 0:00:08]} 12. Bxe7 {[%emt 0:00:07]} Qxe7 {[%emt 0:00:06]} 13. Bc2 {[%emt 0:03:08]} Nf6 {[%emt 0:00:45]} 14. Nc3 {[%emt 0:02:16]} Bf5 {[%emt 0:01:43]} 15. Rfd1 {[%emt 0:10:04]} Rad8 {[%emt 0:07:46]} 16. b4 {[%emt 0:00:39]} a6 {[%emt 0:05:05]} 17. Rab1 {[%emt 0:04:17]} h5 {[%emt 0:04:07]} 18. a4 {[%emt 0:07:59]} Qd6 {[%emt 0:06:58]} 19. Rdc1 {[%emt 0:07:29]} Ng4 {[%emt 0:02:20]} 20. g3 {[%emt 0:00:22]} Nf6 {[%emt 0:00:19]} 21. Bd1 {[%emt 0:07:57]} Bg4 {[%emt 0:02:50]} 22. Bxg4 {[%emt 0:01:14]} hxg4 {[%emt 0:00:14]} 23. Qe2 {[%emt 0:01:27]} Qe6 {[%emt 0:00:08]} 24. Rb2 {[%emt 0:11:28]} Nh7 {[%emt 0:02:02]} 25. Nb1 {[%emt 0:00:18]} Ng5 {[%emt 0:00:07]} 26. Nd2 {[%emt 0:00:11]} g6 {[%emt 0:08:06]} 27. b5 {[%emt 0:01:24]} axb5 {[%emt 0:00:13]} 28. axb5 {[%emt 0:00:01]} Kg7 {[%emt 0:00:59]} 29. bxc6 {[%emt 0:02:10]} bxc6 {[%emt 0:00:24]} 30. Rbc2 {[%emt 0:07:15]} Rd6 {[%emt 0:05:57]} 31. Rc5 {[%emt 0:00:32]} f6 {[%emt 0:00:23]} 32. Qc4 {[%emt 0:05:45]} Qxc4 {[%emt 0:02:23]} 33. R5xc4 {[%emt 0:00:56]} Ree6 {[%emt 0:00:11]} 34. Kg2 {[%emt 0:06:06]} Nf3 {[%emt 0:02:09]} 35. Nf1 {[%emt 0:04:24]} f5 {[%emt 0:01:52]} 36. R4c2 {[%emt 0:05:37]} Kf6 {[%emt 0:04:59]} 37. Nd2 {[%emt 0:02:16]} c5 {[%emt 0:00:53]} 38. Nc4 {[%emt 0:00:30]} Rd5 {[%emt 0:00:10]} 39. dxc5 {[%emt 0:02:59]} Rxc5 {[%emt 0:00:14]} 40. h3 {[%emt 0:01:21]} gxh3+ {[%emt 0:01:52]} 41. Kxh3 {[%emt 1:00:03]} Rec6 {[%emt 1:00:10]} 42. Na3 {[%emt 0:05:13]} Rxc2 {[%emt 0:00:33]} 43. Rxc2 {[%emt 0:00:02]} Rxc2 {[%emt 0:00:09]} 44. Nxc2 {[%emt 0:00:04]} 1/2-1/2

[Event "Fagernes GM-A 2019"]
[Site "Fagernes"]
[Date "2019.04.21"]
[Round "9.15"]
[White "Gronnestad, Anita"]
[Black "Holleland, Sigve"]
[Result "0-1"]
[ECO "D34"]
[WhiteElo "1954"]
[BlackElo "2024"]
[Annotator "NA"]
[PlyCount "130"]
[EventDate "2019.04.14"]
[EventType "tourn"]
[EventCountry "NOR"]
[SourceTitle "playchess.com"]
[Source "ChessBase"]
[SourceQuality "1"]
[TimeControl "40/7200:3600"]

1. c4 {[%emt 0:00:12]} e6 {[%emt 0:01:05]} 2. d4 {[%emt 0:00:16]} Nf6 {[%emt 0:00:05]} 3. g3 {[%emt 0:00:20]} c5 {[%emt 0:00:26]} 4. Nf3 {[%emt 0:01:18]} d5 {[%emt 0:01:22]} 5. Bg2 {[%emt 0:01:00]} Nc6 {[%emt 0:03:20]} 6. cxd5 {[%emt 0:01:09]} exd5 {[%emt 0:00:20]} 7. O-O {[%emt 0:00:34]} Bg4 {[%emt 0:04:07]} 8. dxc5 {[%emt 0:04:52]} Bxc5 {[%emt 0:01:17]} 9. Bg5 {[%emt 0:04:42]} O-O {[%emt 0:06:34]} 10. Nc3 {[%emt 0:08:24]} d4 {[%emt 0:02:59]} 11. Bxf6 {[%emt 0:03:53]} Qxf6 {[%emt 0:00:09]} 12. Nd5 {[%emt 0:01:35]} Qd6 {[%emt 0:03:14]} 13. Nd2 {[%emt 0:03:30]} d3 {[%emt 0:07:03]} 14. Qa4 {[%emt 0:08:49]} dxe2 {[%emt 0:02:18]} 15. Rfc1 {[%emt 0:02:34]} Bf5 {[%emt 0:05:16]} 16. Qc4 {[%emt 0:04:21]} Rae8 {[%emt 0:05:06]} 17. Nb3 {[%emt 0:10:55]} Bb4 {[%emt 0:06:54]} 18. Ne3 {[%emt 0:19:13]} Bd3 {[%emt 0:01:47]} 19. Qd5 {[%emt 0:06:19]} Qxd5 {[%emt 0:02:06]} 20. Bxd5 {[%emt 0:00:06]} e1=Q+ {[%emt 0:00:41]} 21. Rxe1 {[%emt 0:00:04]} Bxe1 {[%emt 0:00:09]} 22. Rxe1 {[%emt 0:00:26]} Nb4 {[%emt 0:07:53]} 23. Bxb7 {[%emt 0:02:00]} Nc2 {[%emt 0:04:20]} 24. Nxc2 {[%emt 0:02:52]} Bxc2 {[%emt 0:02:59]} 25. Ra1 {[%emt 0:02:07]} Bxb3 {[%emt 0:04:33]} 26. axb3 {[%emt 0:00:05]} Re7 {[%emt 0:00:09]} 27. Bd5 {[%emt 0:02:40]} Rd8 {[%emt 0:02:06]} 28. Bc4 {[%emt 0:02:36]} Rd2 {[%emt 0:00:47]} 29. Ra5 {[%emt 0:01:16]} Rxb2 {[%emt 0:01:54]} 30. Rd5 {[%emt 0:02:44]} g6 {[%emt 0:00:46]} 31. Rd4 {[%emt 0:03:36]} Kg7 {[%emt 0:00:38]} 32. Rd5 {[%emt 0:02:50]} h6 {[%emt 0:01:18]} 33. h4 {[%emt 0:00:33]} Rc2 {[%emt 0:02:20]} 34. Kg2 {[%emt 0:01:49]} Re6 {[%emt 0:01:42]} 35. Rd1 {[%emt 0:04:32]} Rf6 {[%emt 0:00:19]} 36. Rf1 {[%emt 0:00:03]} Rd6 {[%emt 0:00:34]} 37. Kf3 {[%emt 0:00:27]} Rdd2 {[%emt 0:00:37]} 38. Ke3 {[%emt 0:00:13]} Rd7 {[%emt 0:02:46]} 39. Ra1 {[%emt 0:00:30]} Re7+ {[%emt 0:01:37]} 40. Kf3 {[%emt 0:00:38]} Rc3+ {[%emt 0:03:30]} 41. Kg2 {[%emt 1:03:44]} Rd7 {[%emt 1:01:00]} 42. Ra2 {[%emt 0:00:00]} g5 {[%emt 0:00:00]} 43. hxg5 {[%emt 0:00:00]} hxg5 {[%emt 0:00:00]} 44. Ra5 {[%emt 0:00:00]} Kg6 {[%emt 0:00:00]} 45. g4 {[%emt 0:00:00]} Rd4 {[%emt 0:00:00]} 46. Be2 {[%emt 0:00:00]} Rxb3 {[%emt 0:00:00]} 47. Rxa7 {[%emt 0:00:00]} Rb2 {[%emt 0:00:00]} 48. Re7 {[%emt 0:00:00]} Kf6 {[%emt 0:00:00]} 49. Re3 {[%emt 0:00:00]} Rd6 {[%emt 0:00:00]} 50. Kg3 {[%emt 0:00:00]} Re6 {[%emt 0:00:00]} 51. Rf3+ {[%emt 0:00:00]} Kg7 {[%emt 0:00:00]} 52. Bd3 {[%emt 0:00:00]} Rb3 {[%emt 0:00:00]} 53. Kg2 {[%emt 0:00:00]} Rf6 {[%emt 0:00:00]} 54. Rxf6 {[%emt 0:00:00]} Kxf6 {[%emt 0:00:00]} 55. Bf5 {[%emt 0:00:00]} Ke5 {[%emt 0:00:00]} 56. Bd7 {[%emt 0:00:00]} Kf4 {[%emt 0:00:00]} 57. Bf5 {[%emt 0:00:00]} f6 {[%emt 0:00:00]} 58. Be6 {[%emt 0:00:00]} Rb8 {[%emt 0:00:00]} 59. Bf5 {[%emt 0:00:00]} Rh8 {[%emt 0:00:00]} 60. Be6 {[%emt 0:00:00]} Rh4 {[%emt 0:00:00]} 61. f3 {[%emt 0:00:00]} Rh8 {[%emt 0:00:00]} 62. Bd5 {[%emt 0:00:00]} Rb8 {[%emt 0:00:00]} 63. Ba2 {[%emt 0:00:00]} Rb2+ {[%emt 0:00:00]} 64. Kh3 {[%emt 0:00:00]} Rf2 {[%emt 0:00:00]} 65. Bd5 {[%emt 0:00:00]} Rxf3+ {[%emt 0:00:00]} 0-1

[Event "Fagernes GM-A 2019"]
[Site "Fagernes"]
[Date "2019.04.21"]
[Round "9.16"]
[White "Bjerke, Richard"]
[Black "Kizatbay, Abyl"]
[Result "1/2-1/2"]
[ECO "A58"]
[WhiteElo "2156"]
[BlackElo "2108"]
[Annotator "NA"]
[PlyCount "91"]
[EventDate "2019.04.14"]
[EventType "tourn"]
[EventCountry "NOR"]
[SourceTitle "playchess.com"]
[Source "ChessBase"]
[SourceQuality "1"]
[TimeControl "40/7200:3600"]

1. d4 {[%emt 2:00:00]} Nf6 {[%emt 0:01:54]} 2. c4 {[%emt 0:00:00]} c5 {[%emt 0:00:19]} 3. d5 {[%emt 0:00:00]} b5 {[%emt 0:00:14]} 4. cxb5 {[%emt 0:00:00]} a6 {[%emt 0:00:04]} 5. bxa6 {[%emt 0:00:00]} g6 {[%emt 0:00:11]} 6. Nc3 {[%emt 0:00:00]} Bg7 {[%emt 0:00:04]} 7. g3 {[%emt 0:00:00]} d6 {[%emt 0:02:30]} 8. Bg2 {[%emt 0:00:00]} Bxa6 {[%emt 0:06:31]} 9. Nf3 {[%emt 0:00:00]} O-O {[%emt 0:00:10]} 10. O-O {[%emt 0:00:00]} Nbd7 {[%emt 0:01:03]} 11. h3 {[%emt 0:00:00]} Qb6 {[%emt 0:07:01]} 12. Re1 {[%emt 0:00:00]} Rfb8 {[%emt 0:00:53]} 13. Rb1 {[%emt 0:00:00]} Ne8 {[%emt 0:12:48]} 14. Bd2 {[%emt 0:00:00]} Nc7 {[%emt 0:02:21]} 15. Qc2 {[%emt 0:00:00]} Nb5 {[%emt 0:05:49]} 16. Nxb5 {[%emt 0:00:00]} Bxb5 {[%emt 0:01:59]} 17. b3 {[%emt 0:00:00]} Qa6 {[%emt 0:07:18]} 18. Bg5 {[%emt 0:00:00]} h6 {[%emt 0:09:42]} 19. Bxe7 {[%emt 0:00:00]} Re8 {[%emt 0:01:52]} 20. a4 {[%emt 0:00:00]} Rxe7 {[%emt 0:00:41]} 21. axb5 {[%emt 0:00:00]} Qxb5 {[%emt 0:00:09]} 22. e4 {[%emt 0:00:00]} Ne5 {[%emt 0:09:09]} 23. Nxe5 {[%emt 0:00:00]} Bxe5 {[%emt 0:00:10]} 24. Red1 {[%emt 0:00:00]} Rea7 {[%emt 0:08:13]} 25. Bf1 {[%emt 0:00:00]} Qb4 {[%emt 0:04:41]} 26. Qd2 {[%emt 0:00:00]} Bc3 {[%emt 0:06:33]} 27. Qd3 {[%emt 0:00:00]} Ra2 {[%emt 0:01:57]} 28. Rdc1 {[%emt 0:00:00]} Bd4 {[%emt 0:06:36]} 29. Rc2 {[%emt 0:00:00]} R8a3 {[%emt 0:01:15]} 30. Be2 {[%emt 0:00:00]} Rxc2 {[%emt 0:03:22]} 31. Qxc2 {[%emt 0:00:00]} Qa5 {[%emt 0:00:21]} 32. Qc4 {[%emt 0:00:00]} Ra1 {[%emt 0:00:41]} 33. Qd3 {[%emt 0:00:00]} Rxb1+ {[%emt 0:05:01]} 34. Qxb1 {[%emt 0:00:00]} Qc3 {[%emt 0:00:23]} 35. Kg2 {[%emt 0:00:00]} Qd2 {[%emt 0:00:48]} 36. Qd3 {[%emt 0:00:00]} Qxd3 {[%emt 0:00:28]} 37. Bxd3 {[%emt 0:00:00]} h5 {[%emt 0:01:25]} 38. f4 {[%emt 0:00:00]} Kg7 {[%emt 0:00:17]} 39. Kf3 {[%emt 0:00:00]} Kf6 {[%emt 0:00:06]} 40. g4 {[%emt 0:00:00]} hxg4+ {[%emt 0:00:23]} 41. Kxg4 {[%emt 0:42:32]} Be3 {[%emt 1:01:51]} 42. h4 {[%emt 0:01:30]} Bd2 {[%emt 0:01:36]} 43. Bc4 {[%emt 0:00:42]} Bc3 {[%emt 0:00:00]} 44. h5 {[%emt 0:00:00]} gxh5+ {[%emt 0:00:00]} 45. Kxh5 {[%emt 0:00:00]} Bd4 {[%emt 0:00:00]} 46. Kg4 {[%emt 0:00:00]} 1/2-1/2

[Event "Fagernes GM-A 2019"]
[Site "Fagernes"]
[Date "2019.04.21"]
[Round "9.17"]
[White "Andersen, Morten"]
[Black "Ingebretsen, Jens E"]
[Result "1-0"]
[ECO "E04"]
[WhiteElo "2223"]
[BlackElo "2300"]
[Annotator "NA"]
[PlyCount "115"]
[EventDate "2019.04.14"]
[EventType "tourn"]
[EventCountry "NOR"]
[SourceTitle "playchess.com"]
[Source "ChessBase"]
[SourceQuality "1"]
[TimeControl "40/7200:3600"]

1. d4 {[%emt 0:00:02]} d5 {[%emt 0:01:28]} 2. c4 {[%emt 0:01:28]} e6 {[%emt 0:00:06]} 3. Nf3 {[%emt 0:00:18]} Nf6 {[%emt 0:00:05]} 4. g3 {[%emt 0:00:12]} dxc4 {[%emt 0:00:06]} 5. Bg2 {[%emt 0:00:12]} Nc6 {[%emt 0:00:05]} 6. Qa4 {[%emt 0:00:36]} Nd7 {[%emt 0:00:06]} 7. Qxc4 {[%emt 0:00:32]} Nb6 {[%emt 0:00:07]} 8. Qb5 {[%emt 0:00:53]} a6 {[%emt 0:00:05]} 9. Qd3 {[%emt 0:00:34]} e5 {[%emt 0:00:46]} 10. Nxe5 {[%emt 0:02:55]} Nb4 {[%emt 0:00:08]} 11. Qc3 {[%emt 0:01:26]} Qxd4 {[%emt 0:00:21]} 12. Qxd4 {[%emt 0:00:14]} Nc2+ {[%emt 0:00:05]} 13. Kd1 {[%emt 0:00:14]} Nxd4 {[%emt 0:00:06]} 14. Be3 {[%emt 0:00:22]} Nb5 {[%emt 0:00:05]} 15. a4 {[%emt 0:07:10]} Nd6 {[%emt 0:00:49]} 16. Bxb6 {[%emt 0:01:46]} cxb6 {[%emt 0:00:08]} 17. Nc3 {[%emt 0:00:16]} Be6 $11 {[%emt 0:03:03]} 18. Nd5 {[%emt 0:06:03]} O-O-O {[%emt 0:01:15]} 19. Rc1+ {[%emt 0:17:16]} Kb8 {[%emt 0:00:18]} 20. Ke1 {[%emt 0:08:03]} Nf5 {[%emt 0:05:09]} 21. Nc3 {[%emt 0:06:06]} Nd4 {[%emt 0:02:32]} 22. e3 {[%emt 0:04:48]} Nb3 {[%emt 0:01:06]} 23. Rd1 {[%emt 0:00:41]} Bb4 {[%emt 0:00:52]} 24. Nd3 {[%emt 0:07:28]} Ba5 {[%emt 0:01:04]} 25. Bf3 {[%emt 0:04:05]} Nc5 {[%emt 0:03:13]} 26. Nxc5 {[%emt 0:05:13]} bxc5 {[%emt 0:00:23]} 27. Rd2 {[%emt 0:04:54]} Bb3 {[%emt 0:02:29]} 28. Bd1 {[%emt 0:01:42]} Be6 {[%emt 0:11:40]} 29. Bc2 {[%emt 0:02:30]} Ka7 {[%emt 0:01:01]} 30. Kd1 {[%emt 0:02:05]} Kb6 {[%emt 0:01:00]} 31. Kc1 {[%emt 0:04:50]} Rxd2 {[%emt 0:00:14]} 32. Kxd2 {[%emt 0:00:04]} Rd8+ {[%emt 0:00:17]} 33. Kc1 {[%emt 0:00:28]} Bxc3 {[%emt 0:00:51]} 34. bxc3 {[%emt 0:00:03]} Ka5 {[%emt 0:00:18]} 35. e4 {[%emt 0:01:30]} b6 {[%emt 0:05:58]} 36. Re1 {[%emt 0:04:53]} Bc8 {[%emt 0:02:33]} 37. e5 {[%emt 0:02:11]} g6 {[%emt 0:01:40]} 38. Bb3 {[%emt 0:04:14]} Be6 {[%emt 0:00:59]} 39. Bxe6 {[%emt 0:04:32]} fxe6 {[%emt 0:00:35]} 40. Kc2 {[%emt 0:02:16]} Kxa4 {[%emt 0:04:09]} 41. c4 {[%emt 1:02:53]} b5 {[%emt 1:02:22]} 42. Ra1+ {[%emt 0:00:00]} Kb4 {[%emt 0:00:00]} 43. Rxa6 {[%emt 0:00:00]} Kxc4 {[%emt 0:00:00]} 44. Rxe6 {[%emt 0:00:00]} b4 {[%emt 0:00:00]} 45. Rb6 {[%emt 0:00:00]} Rd4 {[%emt 0:00:00]} 46. f4 {[%emt 0:00:00]} Re4 {[%emt 0:00:00]} 47. Rb7 {[%emt 0:00:00]} Re2+ {[%emt 0:00:00]} 48. Kd1 {[%emt 0:00:00]} Rxh2 {[%emt 0:00:00]} 49. e6 {[%emt 0:00:00]} Ra2 {[%emt 0:00:00]} 50. g4 {[%emt 0:00:00]} Kd5 {[%emt 0:00:00]} 51. f5 {[%emt 0:00:00]} Ke5 {[%emt 0:00:00]} 52. Rf7 {[%emt 0:00:00]} Ra8 {[%emt 0:00:00]} 53. e7 {[%emt 0:00:00]} Kd6 {[%emt 0:00:00]} 54. f6 {[%emt 0:00:00]} Re8 {[%emt 0:00:00]} 55. Rf8 {[%emt 0:00:00]} Kd7 {[%emt 0:00:00]} 56. g5 {[%emt 0:00:00]} c4 {[%emt 0:00:00]} 57. Kc2 {[%emt 0:00:00]} b3+ {[%emt 0:00:00]} 58. Kc3 {[%emt 0:00:00]} 1-0

[Event "Fagernes GM-A 2019"]
[Site "Fagernes"]
[Date "2019.04.21"]
[Round "9.18"]
[White "Lillevold, Frode"]
[Black "Machlik, Monika"]
[Result "0-1"]
[ECO "E46"]
[WhiteElo "2076"]
[BlackElo "2059"]
[Annotator "NA"]
[PlyCount "75"]
[EventDate "2019.04.14"]
[EventType "tourn"]
[EventCountry "NOR"]
[SourceTitle "playchess.com"]
[Source "ChessBase"]
[SourceQuality "1"]
[TimeControl "40/7200:3600"]

1. d4 {[%emt 0:00:02]} Nf6 {[%emt 0:00:04]} 2. c4 {[%emt 0:00:09]} e6 {[%emt 0:00:04]} 3. Nc3 {[%emt 0:00:05]} Bb4 {[%emt 0:00:05]} 4. e3 {[%emt 0:00:06]} O-O {[%emt 0:00:05]} 5. Nge2 {[%emt 0:00:21]} d5 {[%emt 0:00:52]} 6. a3 {[%emt 0:00:24]} Be7 {[%emt 0:00:06]} 7. Nf4 {[%emt 0:01:44]} c6 {[%emt 0:02:21]} 8. Bd3 {[%emt 0:01:45]} Nbd7 {[%emt 0:03:01]} 9. cxd5 {[%emt 0:03:37]} exd5 {[%emt 0:01:38]} 10. f3 {[%emt 0:07:41]} Nb6 {[%emt 0:18:18]} 11. O-O {[%emt 0:22:54]} Re8 {[%emt 0:03:26]} 12. Bd2 {[%emt 0:06:12]} c5 {[%emt 0:01:54]} 13. Rc1 {[%emt 0:04:31]} cxd4 {[%emt 0:06:16]} 14. exd4 {[%emt 0:00:24]} Bd7 {[%emt 0:01:16]} 15. Nfe2 {[%emt 0:09:44]} Bc6 {[%emt 0:18:52]} 16. Bf4 {[%emt 0:03:41]} a6 {[%emt 0:04:26]} 17. Rc2 {[%emt 0:13:14]} Nbd7 {[%emt 0:05:38]} 18. Ng3 {[%emt 0:02:28]} g6 {[%emt 0:05:55]} 19. Re1 {[%emt 0:01:41]} Qb6 {[%emt 0:02:39]} 20. Bf1 {[%emt 0:09:13]} Bf8 {[%emt 0:01:24]} 21. Rce2 {[%emt 0:02:41]} Rxe2 {[%emt 0:04:43]} 22. Rxe2 {[%emt 0:01:15]} Re8 {[%emt 0:00:30]} 23. Qd2 {[%emt 0:02:57]} Bg7 {[%emt 0:05:23]} 24. Rxe8+ {[%emt 0:04:08]} Nxe8 {[%emt 0:00:03]} 25. Nge2 {[%emt 0:00:11]} Nf8 {[%emt 0:05:23]} 26. Kh1 {[%emt 0:05:34]} Ne6 {[%emt 0:00:27]} 27. Be5 {[%emt 0:00:23]} Bxe5 {[%emt 0:04:12]} 28. dxe5 {[%emt 0:00:01]} Qf2 {[%emt 0:01:08]} 29. Qd1 {[%emt 0:01:02]} d4 {[%emt 0:01:49]} 30. Ne4 {[%emt 0:00:59]} Bxe4 {[%emt 0:01:04]} 31. fxe4 {[%emt 0:00:01]} h5 {[%emt 0:07:32]} 32. b3 {[%emt 0:01:38]} N8c7 {[%emt 0:02:27]} 33. Ng1 {[%emt 0:01:08]} Nc5 {[%emt 0:01:25]} 34. Qf3 {[%emt 0:04:47]} Qc2 {[%emt 0:01:38]} 35. Bc4 {[%emt 0:01:42]} N7e6 {[%emt 0:00:36]} 36. Bxe6 {[%emt 0:00:57]} Nxe6 {[%emt 0:00:11]} 37. b4 {[%emt 0:00:40]} d3 {[%emt 0:00:30]} 38. Qf6 {[%emt 0:00:00]} 0-1

[Event "Fagernes GM-A 2019"]
[Site "Fagernes"]
[Date "2019.04.21"]
[Round "9.19"]
[White "Skotheim, Andreas"]
[Black "Lindbol, Aleksander"]
[Result "0-1"]
[ECO "A90"]
[WhiteElo "2182"]
[BlackElo "2139"]
[Annotator "NA"]
[PlyCount "78"]
[EventDate "2019.04.14"]
[EventType "tourn"]
[EventCountry "NOR"]
[SourceTitle "playchess.com"]
[Source "ChessBase"]
[SourceQuality "1"]
[TimeControl "40/7200:3600"]

1. d4 {[%emt 0:00:12]} f5 {[%emt 0:00:13]} 2. g3 {[%emt 0:00:25]} Nf6 {[%emt 0:00:08]} 3. Bg2 {[%emt 0:00:08]} e6 {[%emt 0:00:06]} 4. c4 {[%emt 0:01:16]} d5 $14 {[%emt 0:00:15]} 5. Nf3 {[%emt 0:00:49]} c6 {[%emt 0:00:12]} 6. O-O {[%emt 0:00:44]} Bd6 {[%emt 0:00:17]} 7. Nc3 {[%emt 0:05:58]} O-O {[%emt 0:01:38]} 8. Qc2 {[%emt 0:02:32]} Ne4 {[%emt 0:07:53]} 9. Rb1 {[%emt 0:14:11]} a5 {[%emt 0:08:06]} 10. a3 {[%emt 0:07:00]} Nd7 {[%emt 0:00:26]} 11. b4 {[%emt 0:02:53]} axb4 {[%emt 0:00:25]} 12. axb4 {[%emt 0:00:09]} Ndf6 {[%emt 0:00:26]} 13. c5 {[%emt 0:20:10]} Bc7 {[%emt 0:02:06]} 14. b5 {[%emt 0:02:56]} Nxc3 {[%emt 0:00:54]} 15. Qxc3 {[%emt 0:00:03]} Ne4 {[%emt 0:00:14]} 16. Qc2 {[%emt 0:06:00]} cxb5 {[%emt 0:00:44]} 17. Rxb5 {[%emt 0:01:45]} b6 {[%emt 0:00:33]} 18. cxb6 {[%emt 0:03:36]} Bxb6 {[%emt 0:00:06]} 19. Bf4 {[%emt 0:02:27]} Ba6 {[%emt 0:01:16]} 20. Rb2 {[%emt 0:01:13]} Ba5 {[%emt 0:03:41]} 21. Ne5 {[%emt 0:07:48]} Bc3 {[%emt 0:02:15]} 22. Rb3 {[%emt 0:01:48]} Bxd4 {[%emt 0:04:36]} 23. Bxe4 {[%emt 0:01:19]} Bxe5 {[%emt 0:01:26]} 24. Bxe5 {[%emt 0:00:33]} fxe4 {[%emt 0:00:04]} 25. Qb2 {[%emt 0:03:20]} Qg5 {[%emt 0:04:17]} 26. Ra1 {[%emt 0:02:42]} Qf5 {[%emt 0:01:39]} 27. e3 {[%emt 0:01:17]} Qf3 {[%emt 0:01:40]} 28. Bxg7 {[%emt 0:03:11]} Be2 {[%emt 0:00:15]} 29. Bxf8 {[%emt 0:01:02]} Rxf8 {[%emt 0:00:03]} 30. Rf1 {[%emt 0:00:35]} Bxf1 {[%emt 0:00:05]} 31. Kxf1 {[%emt 0:00:05]} Qh1+ {[%emt 0:00:13]} 32. Ke2 {[%emt 0:00:05]} Qxh2 {[%emt 0:00:35]} 33. Rb8 {[%emt 0:01:02]} Qxf2+ {[%emt 0:00:10]} 34. Kd1 {[%emt 0:20:46]} Qf1+ {[%emt 0:01:34]} 35. Kd2 {[%emt 0:00:00]} Qd3+ {[%emt 0:00:07]} 36. Kc1 {[%emt 0:00:00]} Qxe3+ {[%emt 0:00:12]} 37. Kb1 {[%emt 0:00:00]} Qg1+ {[%emt 0:00:14]} 38. Kc2 {[%emt 0:00:00]} Qf2+ {[%emt 0:00:15]} 39. Kb1 {[%emt 0:00:00]} Qxb2+ {[%emt 0:00:06]} 0-1

[Event "Fagernes GM-A 2019"]
[Site "Fagernes"]
[Date "2019.04.21"]
[Round "9.20"]
[White "Grover, Sigurd Loe"]
[Black "Machlik, Edit"]
[Result "1-0"]
[ECO "A28"]
[WhiteElo "2020"]
[BlackElo "2109"]
[Annotator "NA"]
[PlyCount "87"]
[EventDate "2019.04.14"]
[EventType "tourn"]
[EventCountry "NOR"]
[SourceTitle "playchess.com"]
[Source "ChessBase"]
[SourceQuality "1"]
[TimeControl "40/7200:3600"]

1. c4 {[%emt 0:00:58]} e5 {[%emt 0:00:36]} 2. Nc3 {[%emt 0:00:11]} Nf6 {[%emt 0:00:08]} 3. Nf3 {[%emt 0:00:06]} Nc6 {[%emt 0:00:22]} 4. e3 {[%emt 0:00:08]} d5 {[%emt 0:02:50]} 5. cxd5 {[%emt 0:00:10]} Nxd5 {[%emt 0:00:04]} 6. Bb5 {[%emt 0:00:08]} Nxc3 {[%emt 0:00:49]} 7. bxc3 {[%emt 0:00:07]} Bd6 {[%emt 0:03:02]} 8. d4 {[%emt 0:01:06]} Bd7 {[%emt 0:07:17]} 9. d5 {[%emt 0:07:57]} Ne7 {[%emt 0:06:31]} 10. Bxd7+ {[%emt 0:02:03]} Qxd7 {[%emt 0:00:02]} 11. e4 {[%emt 0:00:19]} O-O {[%emt 0:05:47]} 12. O-O {[%emt 0:03:30]} c6 {[%emt 0:05:55]} 13. c4 {[%emt 0:01:37]} b5 {[%emt 0:02:44]} 14. dxc6 {[%emt 0:02:28]} Qxc6 {[%emt 0:04:09]} 15. cxb5 {[%emt 0:00:39]} Qc7 {[%emt 0:02:33]} 16. Be3 {[%emt 0:05:56]} Rfd8 {[%emt 0:00:15]} 17. Qb3 {[%emt 0:00:49]} Qb7 {[%emt 0:00:59]} 18. a4 {[%emt 0:01:44]} h6 {[%emt 0:01:52]} 19. Rfe1 {[%emt 0:04:30]} a6 {[%emt 0:03:06]} 20. b6 {[%emt 0:04:08]} a5 {[%emt 0:00:44]} 21. Qb5 {[%emt 0:02:57]} Bb4 {[%emt 0:07:10]} 22. Red1 {[%emt 0:03:04]} Bc3 {[%emt 0:06:32]} 23. Rxd8+ {[%emt 0:08:19]} Rxd8 {[%emt 0:00:03]} 24. Rb1 {[%emt 0:00:16]} Qxe4 {[%emt 0:12:30]} 25. b7 {[%emt 0:06:40]} Bb4 {[%emt 0:14:06]} 26. Nd2 {[%emt 0:07:33]} Qxb1+ {[%emt 0:04:43]} 27. Nxb1 {[%emt 0:00:02]} Rd1+ {[%emt 0:00:10]} 28. Qf1 {[%emt 0:00:04]} Rxf1+ {[%emt 0:00:18]} 29. Kxf1 {[%emt 0:00:02]} Nc6 {[%emt 0:02:45]} 30. Nd2 {[%emt 0:00:37]} Bd6 {[%emt 0:04:11]} 31. Nc4 {[%emt 0:00:41]} Bb8 {[%emt 0:01:51]} 32. Bb6 {[%emt 0:01:58]} Kf8 {[%emt 0:01:33]} 33. Nxa5 {[%emt 0:00:20]} Nxa5 {[%emt 0:01:44]} 34. Bxa5 {[%emt 0:00:04]} Ke8 {[%emt 0:00:09]} 35. Bb4 {[%emt 0:03:53]} Kd7 {[%emt 0:06:21]} 36. Bf8 {[%emt 0:01:05]} g6 {[%emt 0:02:33]} 37. Bxh6 {[%emt 0:00:52]} Kc6 {[%emt 0:00:02]} 38. g4 {[%emt 0:01:00]} Kxb7 {[%emt 0:02:48]} 39. h4 {[%emt 0:00:42]} e4 {[%emt 0:00:29]} 40. Bg7 {[%emt 0:00:21]} Bf4 {[%emt 0:00:13]} 41. h5 {[%emt 1:03:01]} gxh5 {[%emt 0:00:07]} 42. gxh5 {[%emt 0:00:00]} e3 {[%emt 0:00:12]} 43. f3 {[%emt 0:00:00]} Ka6 {[%emt 0:01:05]} 44. h6 {[%emt 0:00:00]} 1-0